bitfinex/quotes_ETHUSD_20241204
["timestamp","ask_amount","ask_price","bid_price","bid_amount"]
[1733332048157,1.6427,3779.1,3777.8,3.0]
[1733332048391,1.6427,3779.1,3778.3,2.64668]
[1733332048589,1.6427,3779.1,3777.6,0.264715]
[1733332048590,1.6427,3779.1,3779.0,2.6462]
[1733332048765,0.53796554,3779.5,3778.3,0.264668]
[1733332048960,0.53796554,3779.5,3778.2,0.9434]
[1733332048961,0.53796554,3779.5,3778.7,2.64636]
[1733332049209,1.5167,3779.8,3778.7,2.64636]
[1733332049506,1.5167,3779.8,3779.2,2.64605]
[1733332049706,1.5167,3779.8,3779.4,2.6459]
[1733332050002,0.54082537,3780.2,3778.7,3.0]
[1733332050206,1.5135,3780.4,3779.4,2.64588]
[1733332050385,0.03306623,3780.3,3778.8,0.355]
[1733332050589,1.5135,3780.4,3779.5,2.64578]
[1733332050912,0.03306798,3780.3,3778.2,3.59013]
[1733332051051,0.03307315,3780.4,3778.0,2.64684]
[1733332051255,1.6269,3780.1,3778.5,2.64654]
[1733332051555,1.6269,3780.1,3778.0,2.64684]
[1733332051556,1.6269,3779.2,3778.1,2.64683]
[1733332051693,0.03307586,3780.7,3779.1,2.64612]
[1733332051882,0.51884706,3779.6,3778.5,2.64655]
[1733332052207,0.51884706,3779.6,3778.0,0.4923101]
[1733332052361,1.6323,3779.5,3778.0,0.31394101]
[1733332052562,0.52524995,3780.1,3778.0,0.31394101]
[1733332052808,0.52524995,3780.1,3779.7,2.64565]
[1733332052963,1.6323,3780.0,3779.2,2.64601]
[1733332053171,0.03307176,3779.9,3778.5,2.64651]
[1733332053479,1.6323,3780.0,3777.8,3.0]
[1733332053679,1.6323,3780.0,3778.7,2.64636]
[1733332053992,0.16653765,3779.9,3778.7,2.64636]
[1733332054309,0.16653765,3779.9,3778.0,3.0]
[1733332054520,1.6323,3780.0,3778.0,3.0]
[1733332054666,1.6323,3780.0,3779.2,2.64605]
[1733332054863,1.6323,3780.0,3779.4,2.64591]
[1733332055308,1.6323,3780.0,3779.4,2.64586]
[1733332055469,1.6323,3780.0,3779.6,2.64573]
[1733332055802,1.6323,3780.0,3778.5,2.64655]
[1733332055803,1.6323,3780.0,3779.8,2.64562]
[1733332056177,1.6323,3780.0,3778.8,3.0]
[1733332056377,1.6323,3780.0,3778.9,0.658981]
[1733332056566,1.6323,3780.0,3779.2,2.64604]
[1733332056913,1.6323,3780.0,3778.8,2.64627]
[1733332056914,0.03306875,3779.9,3778.8,2.64627]
[1733332057206,0.03306875,3779.9,3779.0,2.64619]
[1733332057391,1.6323,3780.0,3779.7,2.64567]
[1733332057701,1.6323,3780.0,3778.4,3.0]
[1733332057929,1.6323,3780.0,3779.7,2.6457]
[1733332058219,1.6323,3780.0,3779.4,2.64586]
[1733332058380,0.03306889,3779.9,3778.4,3.49491532]
[1733332058560,1.6323,3780.0,3778.5,2.64655]
[1733332058763,1.6323,3780.0,3778.7,2.64636]
[1733332059015,1.5161,3779.8,3777.9,3.0]
[1733332059168,0.57518266,3779.7,3778.1,0.50727535]
[1733332059517,0.57518266,3779.7,3778.3,2.64668]
[1733332059669,0.55,3779.6,3777.9,2.64692]
[1733332059874,0.55,3779.6,3776.6,2.91248]
[1733332059875,1.5833,3778.7,3777.2,2.64745]
[1733332060068,1.5833,3778.5,3776.8,0.50441647]
[1733332060406,0.58308892,3778.4,3777.0,2.6476]
[1733332060724,0.58308892,3778.4,3776.3,0.9434]
[1733332060868,1.5002,3778.3,3777.1,2.64751]
[1733332061271,0.53787089,3777.9,3776.9,2.64766]
[1733332061651,1.5654,3777.7,3776.5,2.64793]
[1733332061802,0.21363622,3777.6,3776.6,2.64788]
[1733332061972,0.21363622,3777.6,3776.8,2.64773]
[1733332062173,1.5654,3777.7,3776.8,2.64773]
[1733332062391,1.5654,3777.7,3776.3,0.51374544]
[1733332062594,1.5654,3777.7,3777.4,2.64731]
[1733332062793,1.5654,3777.7,3776.3,3.0]
[1733332063317,1.542,3778.2,3777.6,2.64713]
[1733332063522,1.542,3778.2,3777.8,2.64703]
[1733332063723,1.542,3778.2,3777.5,2.64718]
[1733332063876,1.542,3778.2,3777.6,2.64717]
[1733332064210,1.542,3778.2,3776.5,2.64795]
[1733332064211,1.74836728,3778.2,3777.0,2.64757]
[1733332064417,0.03309099,3778.1,3777.0,2.64757]
[1733332064602,0.03309099,3778.1,3776.5,3.14678918]
[1733332064603,1.5422,3777.9,3776.5,2.64793]
[1733332064780,1.57529345,3777.9,3776.6,2.64785]
[1733332065117,0.51960837,3777.5,3776.6,2.64785]
[1733332065316,0.51960837,3777.5,3776.2,2.64816]
[1733332065522,0.51960837,3777.5,3776.7,2.6478]
[1733332065675,1.5422,3777.9,3777.0,2.64759]
[1733332065874,1.5422,3777.9,3776.8,2.64771]
[1733332066184,1.5422,3777.9,3776.3,0.264816]
[1733332066381,1.5422,3777.9,3777.8,2.64704]
[1733332066690,8.79,3779.6,3777.9,2.6469]
[1733332066691,1.6461,3778.4,3777.9,2.6469]
[1733332066873,1.6461,3778.4,3776.8,3.0]
[1733332067083,1.6461,3778.4,3776.7,3.1978]
[1733332067084,0.53528057,3778.0,3777.6,2.64713]
[1733332067332,0.53528057,3778.0,3777.2,2.64746]
[1733332067333,1.6017,3778.9,3777.7,0.9434]
[1733332067531,1.6017,3778.9,3778.2,2.64669]
[1733332067680,1.6017,3778.9,3777.6,3.0]
[1733332068114,0.52325596,3778.7,3777.6,3.0]
[1733332068413,0.52325596,3778.7,3777.6,3.61402345]
[1733332068618,0.52325596,3778.7,3777.6,6.26115345]
[1733332068818,1.6017,3778.9,3778.0,2.64683]
[1733332069316,1.6017,3778.9,3777.9,2.64696]
[1733332069516,0.53204929,3778.8,3777.0,0.9434]
[1733332069721,0.74542422,3778.8,3777.1,0.165752]
[1733332069926,0.74542422,3778.8,3777.9,2.64694]
[1733332070107,0.77850654,3778.8,3777.3,2.64735]
[1733332070291,1.6023,3778.6,3777.0,2.64756]
[1733332070499,1.6023,3778.0,3775.0,2.64897]
[1733332070695,1.6023,3778.0,3774.9,0.9434]
[1733332070696,1.6023,3777.5,3776.2,2.64809]
[1733332070915,0.03309555,3777.4,3776.2,2.64809]
[1733332071115,0.03309555,3777.4,3775.1,0.359237]
[1733332071116,4.16409,3777.3,3775.2,2.64886]
[1733332071289,1.54979997,3777.2,3775.8,2.64843]
[1733332071489,1.5604,3776.8,3775.3,2.64877]
[1733332071713,1.5604,3776.8,3775.1,0.359237]
[1733332071714,2.09733265,3776.6,3775.1,0.359237]
[1733332072022,1.5604,3776.6,3776.1,2.64822]
[1733332073115,1.5604,3776.6,3775.9,2.64836]
[1733332073323,1.5604,3776.6,3775.4,2.64868]
[1733332073619,0.03310025,3776.5,3775.1,0.86080609]
[1733332073833,0.03310025,3776.5,3774.9,2.64905]
[1733332073834,0.15935003,3776.4,3774.9,2.64905]
[1733332073985,0.55,3776.2,3774.0,0.9434]
[1733332074185,0.55,3776.2,3774.8,2.64912]
[1733332074186,0.03310979,3776.1,3774.8,2.64912]
[1733332074405,1.6492,3776.0,3774.8,2.64912]
[1733332074681,1.6492,3776.0,3774.0,0.9434]
[1733332074682,1.6492,3776.0,3775.1,2.64886]
[1733332074921,1.6492,3776.0,3774.0,1.44612304]
[1733332074922,1.6492,3776.0,3775.2,2.64886]
[1733332075239,1.6492,3776.0,3775.3,2.64879]
[1733332075388,0.52019983,3775.9,3775.8,2.64843]
[1733332075591,1.6492,3776.0,3775.9,2.64837]
[1733332075890,1.5295,3777.7,3776.2,2.64814]
[1733332076135,1.5373,3777.5,3776.3,2.64808]
[1733332076281,1.5373,3777.5,3776.3,2.912888]
[1733332076486,1.5373,3777.5,3776.4,2.64802]
[1733332076692,0.54143356,3777.3,3776.3,0.264808]
[1733332076892,0.54143356,3777.3,3776.5,2.64793]
[1733332077154,0.54143356,3777.3,3775.7,0.513747]
[1733332077155,1.5373,3777.5,3775.7,0.513747]
[1733332077335,1.5373,3777.5,3776.6,2.64787]
[1733332077637,0.53082105,3777.4,3776.2,5.29632]
[1733332077795,0.53082105,3777.4,3776.3,2.64809]
[1733332077998,0.53082105,3777.4,3776.4,0.359149]
[1733332077999,0.03309211,3777.3,3776.4,0.359149]
[1733332078213,0.53082105,3777.4,3776.5,2.64794]
[1733332078724,0.53082105,3777.4,3776.0,0.50194885]
[1733332078999,0.53082105,3777.4,3775.9,2.64832]
[1733332079224,1.5373,3777.5,3776.8,2.6477]
[1733332079554,1.5373,3777.5,3777.0,2.64757]
[1733332079835,1.5373,3777.5,3777.1,0.264757]
[1733332080048,0.53092702,3778.0,3776.7,3.19781]
[1733332080204,1.6517,3778.7,3778.4,2.64659]
[1733332080404,1.6517,3778.7,3777.9,2.64692]
[1733332080606,0.51266109,3778.5,3778.4,2.64662]
[1733332080845,1.6517,3778.7,3777.1,0.55]
[1733332081019,1.6517,3778.7,3777.3,3.0]
[1733332081221,1.6517,3778.7,3777.0,0.49281155]
[1733332081420,0.03308599,3778.6,3776.6,0.9434]
[1733332081620,0.03308599,3778.6,3776.6,0.4913054]
[1733332081621,1.6517,3778.5,3776.6,0.4913054]
[1733332081821,1.6517,3778.5,3776.1,0.9434]
[1733332081822,1.6517,3778.5,3777.4,2.64729]
[1733332082167,1.6517,3778.5,3776.3,3.0]
[1733332082168,1.6517,3778.5,3777.7,2.64707]
[1733332082361,1.6517,3778.5,3777.4,2.64728]
[1733332082660,0.53616534,3778.3,3777.6,2.64715]
[1733332083511,1.6517,3778.5,3778.2,2.64674]
[1733332083836,1.6517,3778.5,3777.4,0.55]
[1733332084007,1.60438018,3779.9,3778.0,2.64684]
[1733332084205,1.5713,3779.6,3777.5,0.67102032]
[1733332084446,0.52753374,3779.1,3777.8,2.64698]
[1733332084651,0.52753374,3779.1,3777.7,0.55]
[1733332084856,0.52753374,3779.1,3779.0,2.6462]
[1733332085158,1.5713,3779.6,3779.4,2.64591]
[1733332085521,2.13162512,3780.1,3779.8,2.64564]
[1733332085728,1.5917,3780.1,3779.8,2.64557]
[1733332085927,1.5917,3780.1,3779.7,2.6457]
[1733332086248,1.5639,3780.9,3780.8,2.64494]
[1733332086411,8.79,3782.6,3781.0,2.64479]
[1733332086751,1.5639,3781.6,3780.0,0.55]
[1733332086906,1.5639,3781.6,3780.3,0.55]
[1733332087107,0.03305391,3781.5,3779.9,3.0]
[1733332087302,0.03305391,3781.5,3779.1,0.9434]
[1733332087303,1.6428,3781.2,3779.1,0.9434]
[1733332087725,1.6428,3781.2,3780.0,2.64549]
[1733332087938,1.6428,3781.2,3779.2,0.55]
[1733332088296,0.15969539,3781.4,3778.4,2.64662]
[1733332088297,1.6545,3780.9,3778.4,2.64662]
[1733332088577,0.52436061,3780.4,3778.7,2.64641]
[1733332088775,1.6545,3780.9,3779.3,3.0]
[1733332089066,1.6545,3780.7,3779.1,2.64608]
[1733332089229,1.6545,3780.7,3778.8,3.58972]
[1733332089230,2.19441839,3780.7,3778.8,3.58972]
[1733332089426,1.6545,3780.7,3779.2,2.64606]
[1733332089630,1.6545,3780.7,3780.0,2.64547]
[1733332090141,1.6545,3780.7,3779.7,3.0]
[1733332090468,1.6545,3780.7,3780.1,2.64538]
[1733332090675,1.6545,3780.7,3779.8,2.64564]
[1733332090966,1.6545,3780.7,3780.5,2.64513]
[1733332091166,1.531,3782.1,3780.5,2.64513]
[1733332091461,0.52346101,3781.0,3780.5,2.64513]
[1733332091626,0.52346101,3781.0,3780.0,2.6455]
[1733332091826,0.52346101,3781.0,3780.0,2.64548]
[1733332092063,0.72890711,3781.0,3778.9,0.358972]
[1733332092264,1.64906547,3780.9,3779.5,2.64583]
[1733332092565,1.616,3780.7,3778.9,0.86643324]
[1733332092771,1.616,3780.4,3778.8,2.64629]
[1733332093067,1.616,3780.4,3779.0,2.64619]
[1733332093276,1.616,3780.2,3778.9,2.64625]
[1733332093440,1.616,3780.2,3778.5,2.64655]
[1733332093629,1.616,3780.2,3779.0,2.64616]
[1733332093977,1.6486,3779.9,3778.4,0.51372867]
[1733332094265,1.6082,3779.3,3777.7,0.49186787]
[1733332094422,0.03307901,3779.2,3777.7,2.6471]
[1733332094624,1.6082,3779.3,3778.0,2.6469]
[1733332094846,1.6082,3779.3,3777.5,1.16797674]
[1733332095067,1.6082,3780.0,3778.5,2.64655]
[1733332095222,1.6082,3780.0,3779.7,2.64566]
[1733332095434,1.6082,3780.0,3778.4,0.9434]
[1733332095638,0.52962708,3780.2,3780.0,2.64543]
[1733332095876,1.5569,3780.6,3778.7,5.29282]
[1733332096076,1.5569,3780.6,3779.0,0.55]
[1733332096308,1.5569,3780.6,3779.0,3.55]
[1733332096580,1.5569,3780.6,3779.0,0.55]
[1733332096953,1.5569,3780.6,3779.1,2.64613]
[1733332097152,1.5569,3780.6,3778.8,3.0]
[1733332097340,2.64541,3780.2,3778.4,1.45354774]
[1733332098942,1.5056,3779.0,3777.8,2.64703]
[1733332099138,1.5056,3779.0,3777.3,2.64733]
[1733332099339,1.5056,3779.0,3778.2,2.64674]
[1733332099577,1.5056,3779.0,3777.3,2.64733]
[1733332099578,1.5056,3779.0,3778.8,2.64632]
[1733332099783,1.5056,3779.0,3778.6,2.64648]
[1733332100143,1.5056,3779.0,3777.9,2.64696]
[1733332100338,1.5056,3779.0,3778.6,2.64647]
[1733332100651,0.5366676,3779.5,3777.2,0.9434]
[1733332100652,2.1296676,3779.5,3778.3,0.9434]
[1733332100855,1.593,3779.5,3779.3,2.64597]
[1733332101070,1.593,3779.5,3779.4,2.64592]
[1733332101444,0.52099847,3780.1,3779.1,2.64612]
[1733332101642,0.52099847,3780.1,3778.4,0.55]
[1733332101885,11.43422,3781.9,3779.9,2.64552]
[1733332102081,2.67730292,3781.8,3779.9,2.64552]
[1733332102281,11.46730292,3781.8,3779.9,2.64552]
[1733332102580,0.52324872,3780.4,3779.3,0.9749]
[1733332102744,8.79,3782.0,3779.3,3.9749]
[1733332102745,2.64432,3781.7,3779.3,3.9749]
[1733332102942,8.79,3782.0,3780.6,2.64507]
[1733332102943,0.264432,3781.6,3780.6,2.64507]
[1733332103182,8.79,3782.2,3779.6,3.55]
[1733332103183,0.53484001,3781.3,3779.9,2.64557]
[1733332103351,0.53484001,3781.3,3779.8,3.55]
[1733332103546,8.79,3783.1,3780.6,3.0]
[1733332103860,8.79,3783.1,3780.7,2.64498]
[1733332103861,0.53891549,3781.8,3780.7,2.64498]
[1733332104053,0.53891549,3781.8,3780.3,3.0]
[1733332104054,0.53891549,3781.8,3780.8,2.64493]
[1733332104542,0.53891549,3781.8,3780.3,3.0]
[1733332104543,1.67225577,3781.7,3780.0,3.62039]
[1733332104763,0.22111713,3781.6,3779.8,0.50294955]
[1733332104983,0.03305978,3781.5,3780.3,2.64527]
[1733332105184,0.03305978,3781.5,3779.6,3.0]
[1733332105185,1.6392,3781.4,3779.6,3.0]
[1733332105349,1.67226246,3781.4,3779.6,3.0]
[1733332105678,1.6392,3781.4,3779.6,3.0]
[1733332105887,0.18603171,3781.3,3780.2,2.64532]
[1733332106189,0.52388386,3781.2,3780.1,2.64539]
[1733332106344,0.52388386,3781.2,3779.7,0.41713644]
[1733332106345,1.6550606,3781.1,3779.7,0.41713644]
[1733332106549,1.5366,3781.0,3778.5,0.14934]
[1733332106842,1.5366,3780.8,3780.0,2.64546]
[1733332107086,1.5366,3780.8,3778.6,2.64648]
[1733332107382,1.5366,3780.8,3779.9,2.64553]
[1733332107580,1.5366,3780.8,3779.3,2.64594]
[1733332107779,1.5366,3780.8,3779.0,4.12037879]
[1733332107780,1.6089,3780.6,3778.6,0.9749]
[1733332107986,1.6329,3780.4,3778.6,2.64641]
[1733332108158,1.6329,3780.0,3778.3,2.64665]
[1733332108357,1.6329,3780.0,3777.5,2.64724]
[1733332108358,1.6329,3779.7,3778.4,2.64658]
[1733332108562,1.6329,3779.7,3777.6,3.62208]
[1733332108563,0.03307534,3779.6,3778.1,2.64682]
[1733332108778,1.9524976,3779.5,3777.7,2.64711]
[1733332108955,1.9524976,3779.5,3778.2,2.64672]
[1733332109177,1.9524976,3779.5,3777.6,0.9749]
[1733332109355,1.9524976,3779.5,3777.6,4.12896797]
[1733332109558,1.9524976,3779.5,3777.7,2.64711]
[1733332109758,1.9524976,3779.5,3777.6,4.12896797]
[1733332109759,1.9524976,3779.5,3778.3,2.64668]
[1733332109988,1.598,3779.3,3777.8,2.64702]
[1733332110215,1.63108002,3779.2,3777.9,2.64696]
[1733332110783,1.63108002,3779.2,3776.9,3.14786838]
[1733332110969,1.6345,3779.1,3777.6,2.64717]
[1733332111167,0.52141467,3778.6,3777.3,2.64738]
[1733332111400,1.6345,3778.4,3777.3,2.64738]
[1733332111557,1.6345,3778.4,3777.4,2.64732]
[1733332111957,0.03308513,3778.3,3776.3,3.62293]
[1733332112270,2.64694,3778.0,3776.4,2.64798]
[1733332112468,1.6345,3777.7,3775.5,2.64865]
[1733332112668,0.53395784,3777.2,3776.2,2.64812]
[1733332112990,0.53395784,3777.2,3775.3,3.62365]
[1733332112991,1.5972,3777.1,3775.5,0.50161247]
[1733332113190,1.5972,3777.1,3776.2,2.64814]
[1733332113354,1.5972,3777.1,3775.4,2.64872]
[1733332113554,0.21311578,3777.0,3775.5,0.41153035]
[1733332113869,1.5972,3777.1,3775.5,0.41153035]
[1733332114082,1.5972,3777.1,3776.2,2.64814]
[1733332114301,1.5972,3777.1,3775.5,0.41153035]
[1733332114513,1.5972,3777.1,3776.6,2.64784]
[1733332114653,1.5972,3777.1,3776.3,2.64805]
[1733332114857,1.5972,3777.1,3776.3,2.64808]
[1733332115392,1.5972,3777.1,3775.5,0.41153035]
[1733332115393,1.84341206,3777.1,3775.5,0.41153035]
[1733332115895,1.5953,3776.9,3775.5,0.41153035]
[1733332116056,1.5953,3776.9,3775.8,2.64841]
[1733332116253,1.5953,3776.9,3775.5,0.41153035]
[1733332116487,1.6195,3776.8,3775.2,2.64881]
[1733332116697,1.6195,3776.8,3774.9,0.50230354]
[1733332116698,1.6195,3776.3,3775.3,2.64878]
[1733332119678,1.5171,3777.8,3777.7,2.64711]
[1733332120092,1.5171,3778.9,3776.8,2.64773]
[1733332120316,1.5171,3778.9,3776.5,3.9749]
[1733332120317,1.5171,3778.9,3777.4,3.55]
[1733332120525,1.5171,3778.9,3778.8,2.64634]
[1733332121008,1.5171,3778.9,3777.8,0.9749]
[1733332121218,1.5171,3778.9,3777.9,0.39749]
[1733332121380,1.5171,3778.9,3778.8,2.64634]
[1733332121585,1.5171,3778.9,3777.9,3.55]
[1733332121791,1.5171,3778.9,3778.8,2.64634]
[1733332122206,0.52833045,3779.6,3778.5,2.64655]
[1733332122207,1.5171,3779.5,3779.4,2.64588]
[1733332122724,1.5171,3779.5,3779.4,2.64592]
[1733332123073,0.52631857,3780.2,3779.4,2.64592]
[1733332123074,1.5572,3780.1,3779.9,2.64556]
[1733332123311,1.5572,3780.1,3780.0,2.6455]
[1733332123507,8.79,3781.7,3779.7,2.64571]
[1733332123508,1.5897,3780.6,3779.7,2.64571]
[1733332123815,1.5897,3780.6,3779.4,0.264592]
[1733332124215,1.5897,3780.6,3780.1,2.64542]
[1733332124418,1.5897,3780.6,3779.1,3.9749]
[1733332124419,1.74867,3780.6,3779.8,2.64562]
[1733332124620,1.74867,3780.6,3779.1,3.0]
[1733332124621,1.74867,3780.6,3780.0,2.6455]
[1733332124978,1.74867,3780.6,3779.8,2.64563]
[1733332125373,1.74867,3780.6,3779.4,2.64592]
[1733332125374,1.5897,3780.6,3779.4,2.64592]
[1733332125697,1.5897,3780.6,3778.8,0.49893766]
[1733332125698,1.5897,3780.6,3780.5,2.64515]
[1733332125894,0.52113003,3781.0,3779.5,5.6458]
[1733332125895,0.52113003,3781.0,3780.4,2.6452]
[1733332126724,0.53738391,3781.1,3780.4,2.6452]
[1733332126905,1.574,3781.2,3779.5,3.49552647]
[1733332126906,1.574,3781.2,3779.5,0.55]
[1733332127227,1.574,3781.2,3779.9,2.64556]
[1733332127228,1.566,3781.0,3779.9,2.64556]
[1733332127522,1.566,3780.7,3779.5,2.64583]
[1733332127675,1.566,3780.7,3778.7,1.48261648]
[1733332127881,0.52414785,3780.4,3778.7,1.48261648]
[1733332128082,1.566,3780.3,3778.7,0.14826165]
[1733332128281,1.566,3780.3,3780.1,2.64541]
[1733332128497,1.566,3780.3,3780.2,2.64536]
[1733332129120,1.6113,3780.8,3780.2,2.64536]
[1733332129348,1.6113,3780.8,3779.6,0.55]
[1733332129553,1.6113,3780.8,3779.4,6.19592]
[1733332129554,1.6113,3780.8,3780.3,2.64527]
[1733332129733,1.6113,3780.8,3779.3,4.12145352]
[1733332129734,1.6113,3780.8,3779.6,6.19578]
[1733332129938,1.6113,3780.8,3780.5,2.64513]
[1733332130458,1.6113,3780.8,3780.7,2.64501]
[1733332130920,1.6123,3782.3,3780.7,2.64501]
[1733332131123,4.25621,3782.3,3779.7,0.884163]
[1733332131347,0.5338033,3781.8,3780.3,3.9749]
[1733332131522,1.6382,3781.7,3781.1,2.64471]
[1733332131754,1.6382,3782.3,3782.1,2.64402]
[1733332132055,1.6382,3783.0,3781.4,0.9749]
[1733332132357,1.6382,3783.0,3781.5,0.55]
[1733332132561,1.6382,3783.0,3781.6,0.45249]
[1733332132878,1.6382,3783.0,3782.1,2.64403]
[1733332133176,1.6382,3783.0,3781.8,2.64424]
[1733332133484,1.6382,3783.0,3782.3,2.64388]
[1733332133827,1.6382,3783.0,3781.6,0.45249]
[1733332134033,0.16382,3782.9,3781.9,2.64416]
[1733332134475,0.16382,3782.9,3781.4,2.64452]
[1733332134476,0.16382,3782.9,3782.0,2.64408]
[1733332134629,1.6382,3783.0,3781.6,2.64436]
[1733332134828,1.6382,3783.0,3782.4,2.64381]
[1733332135229,1.6382,3783.0,3782.3,2.64388]
[1733332135659,1.6382,3783.0,3781.4,2.64452]
[1733332135858,1.6382,3783.0,3781.3,2.64459]
[1733332135859,1.6382,3783.0,3781.8,2.64418]
[1733332136025,0.03304252,3782.9,3781.5,0.828911]
[1733332136230,1.6382,3783.0,3782.2,2.6439]
[1733332136541,1.6382,3783.0,3781.9,2.64413]
[1733332136747,1.6382,3783.0,3782.0,2.64403]
[1733332137263,1.6382,3783.0,3781.8,2.64422]
[1733332137264,1.6644,3782.8,3781.8,2.64422]
[1733332137566,1.6644,3782.8,3780.8,3.0]
[1733332137567,1.6644,3782.7,3780.8,3.0]
[1733332137956,0.52771592,3782.4,3781.5,2.6444]
[1733332138275,1.6644,3782.7,3780.8,3.0]
[1733332138276,1.6644,3782.7,3781.8,2.64422]
[1733332138579,0.52951411,3782.6,3781.9,2.64417]
[1733332138787,0.52951411,3782.6,3781.6,2.64432]
[1733332138941,0.52951411,3782.6,3781.7,2.6443]
[1733332139439,0.52951411,3782.6,3781.3,2.64459]
[1733332139685,0.52951411,3782.6,3781.6,2.64437]
[1733332139855,0.52951411,3782.6,3781.3,2.64453]
[1733332139856,0.03304804,3782.5,3781.3,2.64453]
[1733332140057,1.6644,3782.4,3781.3,2.64453]
[1733332140371,1.6644,3782.4,3780.0,2.64544]
[1733332140372,1.6644,3782.4,3780.9,0.55]
[1733332140591,1.6644,3782.4,3781.6,2.64438]
[1733332140794,1.6644,3782.4,3782.3,2.64389]
[1733332141371,1.593,3782.9,3782.6,2.64361]
[1733332141604,1.5085,3784.3,3782.6,2.64361]
[1733332141819,1.5085,3784.3,3782.4,3.55]
[1733332142007,1.5085,3784.3,3782.6,0.55]
[1733332142217,2.02592971,3784.3,3782.9,5.28694]
[1733332142508,1.5085,3784.3,3783.6,2.64297]
[1733332142811,1.5085,3784.3,3783.2,2.64324]
[1733332142983,1.5085,3784.3,3783.4,2.64311]
[1733332143182,1.5085,3784.3,3782.7,0.15249]
[1733332143388,1.6224,3783.9,3782.0,0.9749]
[1733332143708,1.6224,3783.6,3781.9,2.64411]
[1733332143908,0.20430698,3784.2,3781.8,2.64424]
[1733332143909,1.6224,3782.9,3781.8,2.64424]
[1733332144116,2.67664596,3782.8,3780.7,0.9749]
[1733332144410,2.64375,3782.5,3781.2,2.64459]
[1733332144563,1.5831,3782.4,3780.7,1.48621682]
[1733332144768,4.22695,3782.4,3781.1,2.64472]
[1733332145106,1.5831,3781.9,3780.3,2.64524]
[1733332145417,0.03305106,3782.3,3779.4,0.9749]
[1733332145418,2.6448,3781.0,3779.4,0.9749]
[1733332145620,0.51621298,3781.7,3779.4,0.9749]
[1733332145621,1.6058,3781.4,3779.4,0.9749]
[1733332145822,1.6058,3781.4,3780.1,2.64539]
[1733332146126,1.6058,3781.4,3779.4,0.9749]
[1733332146127,0.16058,3781.3,3779.4,0.9749]
[1733332146330,1.6058,3781.4,3779.4,0.9749]
[1733332146633,1.6058,3781.4,3780.2,2.64532]
[1733332146802,1.6058,3781.4,3780.2,2.64533]
[1733332147423,2.64486,3781.0,3779.2,2.64604]
[1733332147626,1.6005,3781.1,3779.6,2.64573]
[1733332147792,1.6005,3781.1,3779.9,2.64553]
[1733332148129,0.2,3782.3,3779.9,2.64553]
[1733332148130,0.51734811,3780.9,3780.8,2.64494]
[1733332148438,1.5941,3781.6,3781.1,2.64472]
[1733332148583,1.5941,3781.6,3780.9,2.64486]
[1733332148789,1.5941,3781.6,3781.3,2.64452]
[1733332148989,1.5941,3781.6,3780.1,3.0]
[1733332149339,1.5941,3781.6,3780.0,2.64547]
[1733332149340,2.64461,3781.3,3780.2,1.01142173]
[1733332149559,0.03305562,3781.5,3779.9,3.0]
[1733332149560,1.5407,3781.1,3779.9,3.0]
[1733332149829,1.5407,3781.1,3780.1,2.64536]
[1733332150010,1.5407,3781.1,3779.5,0.9749]
[1733332150185,1.5407,3781.1,3779.8,2.64564]
[1733332150385,1.5407,3781.1,3779.5,0.9749]
[1733332150586,2.64489,3780.9,3779.6,2.64572]
[1733332150830,2.64489,3780.9,3779.6,3.0]
[1733332150831,1.6004,3780.8,3779.6,3.0]
[1733332151030,1.6004,3780.8,3779.0,0.9749]
[1733332151031,4.27840346,3780.8,3779.0,0.9749]
[1733332151187,1.6004,3780.8,3779.0,0.9749]
[1733332151384,1.6004,3780.8,3779.1,2.64613]
[1733332151589,1.6004,3780.8,3780.3,2.64524]
[1733332152240,1.6004,3780.8,3779.4,3.0]
[1733332152450,1.6004,3780.8,3779.3,0.55]
[1733332152657,3.2110246,3781.4,3779.2,3.008143]
[1733332152658,1.5568,3780.6,3779.2,3.008143]
[1733332152948,2.64493,3780.9,3779.2,3.008143]
[1733332152949,1.5568,3780.4,3779.2,2.64604]
[1733332153102,1.7157867,3780.4,3778.5,1.48037905]
[1733332153304,1.7157867,3780.4,3779.2,2.64603]
[1733332153305,1.5568,3780.4,3779.2,2.64603]
[1733332153510,1.5568,3780.4,3778.5,0.9749]
[1733332153751,1.5568,3780.4,3779.2,2.64605]
[1733332154351,2.08216428,3780.4,3779.2,2.64605]
[1733332154505,2.11523306,3780.4,3778.9,2.64625]
[1733332154706,0.03306879,3780.3,3779.1,2.64607]
[1733332154906,2.67836879,3780.3,3779.1,2.64607]
[1733332155458,0.03306879,3780.3,3779.1,2.64607]
[1733332155674,2.29368759,3780.4,3779.3,2.64596]
[1733332155885,2.29368759,3780.4,3778.9,0.264625]
[1733332155886,2.64538,3780.2,3778.9,2.910895]
[1733332156036,1.5533,3780.1,3778.9,0.2910895]
[1733332156228,1.5533,3780.1,3778.5,3.55]
[1733332156431,1.5533,3780.1,3778.6,5.29296]
[1733332156630,2.64454,3781.4,3778.9,3.0]
[1733332156911,2.64422,3781.9,3778.6,0.9749]
[1733332156912,1.5145,3781.3,3779.2,0.55]
[1733332157176,1.5145,3781.3,3780.6,2.64507]
[1733332157471,1.5145,3781.3,3780.4,2.64515]
[1733332157643,0.03305843,3781.2,3780.0,2.64548]
[1733332157847,1.5539,3781.1,3780.0,0.362038]
[1733332158070,1.5539,3781.1,3780.6,2.64507]
[1733332158230,1.5539,3781.1,3779.8,0.55]
[1733332158435,1.5539,3781.1,3780.4,2.64518]
[1733332158949,1.5539,3781.1,3780.1,2.64542]